Cogmind - Beta 9.4 @@@ ROGUE MODE // 2020.02.04 @ 16:10:42 // AFD2018/Launchers Player: sideriver81 Result: Self-destructed Performance ------------- Evolutions (1) 500 Regions Visited (2) 400 Robots Destroyed (21) 105 Value Destroyed (435) 435 Prototype IDs (0) 0 Alien Tech Used (0) 0 Bonus (0) 0 TOTAL SCORE: 1440 Bonus ------- None Cogmind --------- Core Integrity 348/400 Matter 5/300 Energy 125/125 System Corruption 0% Temperature Cool (0) Movement Walking (120) Location -9/Materials Parts ------- > --- POWER (1) -------- Light Ion Engine > --- PROPULSION (3) --- Aluminum Leg > --- UTILITY (3) ------ Improved Terrain Scanner Core Shielding Utility Shielding > --- WEAPON (2) ------- Grenade Launcher > --- INVENTORY (4) ---- Light Ion Engine Grenade Launcher Grenade Launcher Peak State ------------ > --- POWER ------------ Light Ion Engine > --- PROPULSION ------- Wheel Wheel > --- UTILITY ---------- Improved Terrain Scanner Core Shielding Utility Shielding > --- WEAPON ----------- Grenade Launcher Mini Grenade Launcher > --- INVENTORY -------- Light Ion Engine Grenade Launcher Grenade Launcher Grenade Launcher [Rating: 10] Favorites ----------- Power Light Ion Engine Engine Light Ion Engine Propulsion Wheel Leg Aluminum Leg Wheel Wheel Utility Improved Terrain Scanner Device Improved Terrain Scanner Protection Utility Shielding Weapon Grenade Launcher Launcher Grenade Launcher Build | -11 -10 -9 ------- Run | Scr Mat Mat Slots Evolved 2 | . . 2 Power . | . . . Propulsion 1 | . . 1 Utility 1 | . . 1 Weapon . | . . . Parts Attached 14 | 5 3 6 Power 2 | 1 1 . Engine 2 | 1 1 . Core . | . . . Reactor . | . . . Propulsion 5 | 2 . 3 Treads . | . . . Leg 1 | . . 1 Wheel 4 | 2 . 2 Hover . | . . . Flight . | . . . Utility 4 | 2 1 1 Device 2 | 2 . . Storage . | . . . Processor . | . . . Hackware . | . . . Protection 2 | . 1 1 Artifact . | . . . Weapon 3 | . 1 2 Energy Gun . | . . . Energy Cannon . | . . . Ballistic Gun . | . . . Ballistic Cannon . | . . . Launcher 3 | . 1 2 Special Weapon . | . . . Impact Weapon . | . . . Slashing Weapon . | . . . Piercing Weapon . | . . . Special Melee Weapon . | . . . Unidentified Prototypes . | . . . Parts Lost 8 | . 3 5 Power . | . . . Propulsion 4 | . 1 3 Utility 1 | . 1 . Weapon 3 | . 1 2 Highest Loss Streak 4 | . 3 4 Average Slot Usage (%) 74 | . 85 67 Engine 12 | . 14 11 Wheel 15 | . 22 10 Device 15 | . 22 11 Protection 10 | . 2 16 Launcher 19 | . 21 18 Naked Turns . | . . . Heaviest Build 11 | 8 11 10 Greatest Support 26 | 26 26 20 Greatest Overweight (x) 2 | . . 2 Average Overweight (x) . | . . . Largest Inventory Capacity 4 | 4 4 4 Average Capacity 4 | 4 4 4 Most Carried 4 | 4 4 4 Average Carried 3 | 4 3 3 Final Capacity 4 | 4 4 4 Final Carried 4 | 4 4 3 Class Distribution -------------------- 54% | Mutant 45% | Scavenger-Mutant Dominant Class ---------------- Scavenger-Mutant | -10/Materials Mutant | -9/Materials Resources | -11 -10 -9 ----------- Run | Scr Mat Mat Matter Collected 245 | 100 71 74 Remotely 69 | . 69 . Salvage Created 337 | 100 84 153 Parts 27 | 5 5 17 Haulers Intercepted . | . . . Recyclers Shooed . | . . . Parts Field Recycled . | . . . Retrieved Matter . | . . . Parts Self-Destructed . | . . . Prevented . | . . . Kills | -11 -10 -9 ------- Run | Scr Mat Mat Combat Hostiles Destroyed 15 | . 7 8 AOE 15 | . 7 8 Classes Destroyed 8 | 2 3 3 Builder 2 | . . 2 Tunneler 2 | 1 . 1 Recycler 1 | 1 . . Operator 1 | . 1 . Swarmer 7 | . 3 4 Grunt 6 | . 4 2 Duelist 1 | . . 1 Sentry 1 | . . 1 Best Kill Streak 9 | 2 7 9 Combat Bots Only 7 | . 7 7 Max Kills in Single Turn 3 | 2 2 3 Gunslinging . | . . . Exploded 3 | . 2 3 Melee . | . . . Uniques/NPCs Destroyed . | . . . Combat | -11 -10 -9 -------- Run | Scr Mat Mat Damage Taken 427 | 10 203 214 Core 122 | 10 60 52 Absorbed by Shields . | . . . Core Remaining (%) 84 | 96 72 . Volleys Fired 22 | 1 9 12 Largest 2 | 1 2 2 Hottest 60 | 30 60 60 Shots Fired 24 | 1 10 13 Gun . | . . . Cannon . | . . . Launcher 24 | 1 10 13 Special . | . . . Kinetic . | . . . Thermal . | . . . Explosive 24 | 1 10 13 Electromagnetic . | . . . Robot Hit Streak 5 | 1 3 5 Robot Miss Streak 2 | . 2 1 Penetration Max . | . . . Secondary Targets . | . . . Shots Hit Robots 12 | 1 7 4 Core Hits 33 | 2 14 17 Critical Hits . | . . . Critical Kills . | . . . Critical Parts Destroyed . | . . . Melee Attacks . | . . . Impact . | . . . Slashing . | . . . Piercing . | . . . Sneak Attacks . | . . . Combat Hostiles . | . . . Follow-up Attacks . | . . . Damage Inflicted 1364 | 42 527 795 Guns . | . . . Cannons . | . . . Explosions 1364 | 42 527 795 Melee . | . . . Ramming . | . . . Kinetic . | . . . Thermal . | . . . Explosive 1364 | 42 527 795 Electromagnetic . | . . . Impact . | . . . Slashing . | . . . Piercing . | . . . Highest Corruption . | . . . Average Corruption . | . . . Corruption Purged . | . . . Overload Shots . | . . . Overflow Damage 43 | . 21 22 Projectiles . | . . . Explosions 43 | . 21 22 Melee . | . . . Knockbacks . | . . . Impact . | . . . Kinetic . | . . . Secondary . | . . . Self-Inflicted Damage 196 | 10 83 103 Shots 10 | 1 5 4 Rammed . | . . . Targets Rammed . | . . . Kicked . | . . . Crushed . | . . . Highest Temperature 12 | . 12 1 Average Temperature 5 | . 5 1 Received Heat Transfer 75 | . 60 15 Siege Activations . | . . . Robots Corrupted . | . . . Combat Hostiles . | . . . Parts Fried . | . . . Impact Corruptions . | . . . Robots Melted . | . . . Combat Hostiles . | . . . Parts Melted . | . . . Heat Transferred . | . . . Parts Sabotaged . | . . . Parts Stolen . | . . . Parts Stripped . | . . . Power Chain Reactions . | . . . Missiles Intercepted . | . . . Alert | -11 -10 -9 ------- Run | Scr Mat Mat Peak Influence 276 | 10 216 276 Average Influence 141 | 9 113 196 Maximum Alert Level 1 | . 1 1 Low Security (%) 61 | 100 70 45 Level 1 38 | . 29 54 Level 2 . | . . . Level 3 . | . . . Level 4 . | . . . Level 5 . | . . . High Security . | . . . Max Security . | . . . Squads Dispatched 2 | . 1 1 Investigation 1 | . . 1 Extermination . | . . . Reinforcement 1 | . 1 . Assault . | . . . Garrison . | . . . Intercept . | . . . Construction Impeded . | . . . Haulers Reinforced . | . . . Stealth | -11 -10 -9 --------- Run | Scr Mat Mat Distress Signals 1 | . . 1 Communications Jammed . | . . . Distress Signals . | . . . Times Spotted 14 | . 5 9 Peak Tracking Total 4 | . 3 4 Tactical Retreats . | . . . Traps | -11 -10 -9 ------- Run | Scr Mat Mat Traps Triggered 1 | . . 1 Indirectly . | . . . Trap Hack Attempts . | . . . Triggered . | . . . Disarmed . | . . . Reprogrammed . | . . . Reused . | . . . Traps Extracted . | . . . Installed . | . . . Triggered . | . . . Machines | -11 -10 -9 ---------- Run | Scr Mat Mat Machines Disabled 1 | . 1 . Max in Single Turn 1 | . 1 . Machines Sabotaged . | . . . Garrisons Compromised . | . . . Overloaded Fab Kills . | . . . Fab Network Shutdowns . | . . . Hacking | -11 -10 -9 --------- Run | Scr Mat Mat Machines Accessed 1 | . 1 . Terminals 1 | . 1 . Fabricators . | . . . Repair Stations . | . . . Recycling Units . | . . . Scanalyzers . | . . . Garrison Access . | . . . Total Hacks 2 | . 2 . Successful 1 | . 1 . Failed 1 | . 1 . Catastrophic . | . . . Database Lockouts . | . . . Manual 2 | . 2 . Terminals 2 | . 2 . Fabricators . | . . . Repair Stations . | . . . Recycling Units . | . . . Scanalyzers . | . . . Garrison Access . | . . . Terminal Hacks 1 | . 1 . Locate Traps 1 | . 1 . Fabricator Hacks . | . . . Repair Station Hacks . | . . . Recycling Unit Hacks . | . . . Scanalyzer . | . . . Garrison Access Hacks . | . . . Unauthorized Hacks . | . . . Terminals . | . . . Fabricators . | . . . Repair Stations . | . . . Recycling Units . | . . . Scanalyzers . | . . . Garrison Access . | . . . Data Cores Recovered . | . . . Used . | . . . Hacking Detections 1 | . 1 . Full Trace Events . | . . . Feedback Events . | . . . Feedback Blocked . | . . . Robot Schematics Acquired . | . . . Robots Built . | . . . Matter . | . . . Time . | . . . Total Robot Build Rating . | . . . Part Schematics Acquired . | . . . Parts Built . | . . . Matter . | . . . Time . | . . . Total Part Build Rating . | . . . Parts Repaired . | . . . Time . | . . . Parts Recycled . | . . . Recycled Matter . | . . . Retrieved Matter . | . . . Retrieved Components . | . . . Parts Scanalyzed . | . . . Part Schematics Acquired . | . . . Parts Damaged . | . . . Bothacking | -11 -10 -9 ------------ Run | Scr Mat Mat Used RIF Installer . | . . . Robots Hacked . | . . . Non-combat . | . . . Combat . | . . . Robot Hacks Applied . | . . . Relay Couplers Released . | . . . Robots Rewired . | . . . Allies Hacked . | . . . Hacks Repelled . | . . . Allies | -11 -10 -9 -------- Run | Scr Mat Mat Total Allies . | . . . Largest Group . | . . . Highest-Rated Group . | . . . Highest-Rated Ally . | . . . Total Orders . | . . . Ally Attacks . | . . . Total Damage . | . . . Kills . | . . . Allies Corrupted . | . . . Allies Melted . | . . . Intel | -11 -10 -9 ------- Run | Scr Mat Mat Robot Analysis Total . | . . . Derelict Logs Recovered . | . . . Drone Launches . | . . . Drone Recoveries . | . . . Exploration | -11 -10 -9 ------------- Run | Scr Mat Mat Turns Passed 320 | 48 104 168 Spaces Moved 265 | 46 86 133 Core 22 | 8 . 14 Treads . | . . . Legs 4 | . . 4 Wheels 239 | 38 86 115 Hover . | . . . Flight . | . . . Fastest Speed 50 | 50 90 80 Average Speed 92 | 82 93 95 Slowest Speed 150 | 90 100 150 Overloaded Moves . | . . . Propulsion Burnouts . | . . . Robots Hopped . | . . . Cave-ins Triggered . | . . . Exploration Rate (%) 15 | 3 30 14 Regions Visited 2 Branch Regions . Pre-discovered Areas . | . . . Known Exits Taken . | . . . Unknown Exits Taken 2 | 1 1 . Scrap Searched . | . . . Spaces Dug . | . . . Terrain Destroyed 145 | 5 39 101 Melee . | . . . Projectile . | . . . AOE 145 | 5 39 101 Actions | -11 -10 -9 --------- Run | Scr Mat Mat Total 308 | 52 99 157 Wait 6 | . . 6 Move 263 | 45 85 133 Hop . | . . . Pick Up 1 | . 1 . Fast Attach 11 | 5 1 5 Attach 2 | . 1 1 Detach . | . . . Swap 1 | . 1 . Drop 2 | 1 1 . Fire 22 | 1 9 12 Melee . | . . . Ram . | . . . Kick . | . . . Crush . | . . . Escape Stasis . | . . . Rewire . | . . . Trap . | . . . Miscellaneous . | . . . Route ------- -11/Scrapyard -10/Materials -9/Materials History --------- Turn | Location | Event 2 | -11/Scrapyard | Discovered new exit (range 2) 49 | -11/Scrapyard | Entered Materials 143 | -10/Materials | Destroyed 7 combat bots 143 | -10/Materials | Discovered new exit (range 12) 153 | -10/Materials | Lost 3 parts (1n1u1w) 153 | -10/Materials | Entered another Materials area 153 | -9/Materials | Evolved 2 slots: Propulsion x1, Utility x1 262 | -9/Materials | Destroyed 7 combat bots 319 | -9/Materials | Lost 4 parts (2n2w) 321 | -9/Materials | Self-destructed Last Messages --------------- 00282_ Wheel destroyed. 00282_ Destroyed Wheel. 00282_ Wheel destroyed. 00282_ Destroyed Wheel. 00283_ K-01 Serf collects debris. 00284_ U-05 Engineer lays Concrete. 00286_ U-05 Engineer destroyed. 00288_ Grenade Launcher destroyed. 00288_ Mni. Grenade Launcher destroyed. 00289_ The unstable cave ceiling collapses. 00291_ Y-45 Defender destroyed. 00297_ U-05 Engineer lays Concrete. 00306_ Acquired 8 matter. 00307_ U-05 Engineer lays Concrete. 00312_ Acquired Aluminum Leg. 00313_ U-05 Engineer lays Concrete. 00314_ The unstable cave ceiling collapses. 00314_ U-05 Engineer lays Concrete. 00320_ W-16 Scout sends out distress signal. 00320_ U-05 Engineer builds a Wall. Map ----- +----------------------------------------------------+ | ?????????????????????????????????????????????????? | | ?????????????????????????????????????????????????? | | ?????????????????????????????????????????????????? | | ?????????????????????????????????????????????????? | | ?????????????????????????????????????????????????? | | ?????????????????????????????????????????????????? | | ?????????????????????????????????????????????????? | | ?????????????????????????????????????????????????? | | ?????????????????????????????????????????????????? | | ?????????????????????????????????????????????????? | | ?????????????????????????????????????????????????? | | ??????????????? ?? ?????????????????????????????? | | ????????????????# ?????????????????????????????? | | ??????????? ????# ?????????????????????????????? | | ????????????????# k ? ??????? ??#????????????????? | | ????????????????# ?????????????????????????????? | | ##?????#???????## ##???????????????????????????? | | ############ ######??????????????????????? | | ## ###????????????????????? | | ## ?????????????????????? | | ????? ## ##?????????????????????? | | ??????????# #?? ## #?????????????????????? | | ???????##?# ##### # ##?????????????????????? | | ???????# # # # ###??#????????????????? | | ## ##+######???????????? | | + g =! @ #???????????? | | ] # # w """ #???????????? | | ????????# # u """""????????? ???? | | ??? ????#?## # """""?#???????????? | | ???????????######### * # """"" #???????????? | | ?????????????#?????#### """ #???????????? | | ????????????????????## # # #???????????? | | ???????????##???#????## ##??#???????? | | ??????? ??????########## # #???????????? | | ??????????????+ ] ] #######???????????? | | ??????????#???# *# ##?????#???????????? | | ??????????????# # #????????#???????#?? | | ??????????????# #???##?????????????? | | ??????????????#####+#### = #################### | | ?????????????????# | | ?????????????????# | | ?????????? ! | | ?????????########## ##### ##################+## | | ???????????????#? ???#### ##????#?#?????# | | ??????????????? ??????###?#???????????# """ | | ??????????????#######??????????#????#??????# """" | | ???????????????##??????????????????????????# """" | | ????????????????????????????????#??????????# """" | | ????????????????????????????????????????#??# """ | | ???????????????????????????????????????#???# | +----------------------------------------------------+ Best States ------------- Heat Dissipation 28 Energy Generation 10 Energy Capacity 125 Matter Stores 180 Matter Capacity 300 Sight Range 16 Terrain Scan Range 16 Terrain Scan Density 10 Core Shielding 20 Utility Shielding 33 Evasion (%) 50 Item Schematics ----------------- None Robot Schematics ------------------ None Fabricated ------------ Nothing Alien Tech Used ----------------- None Achievements -------------- None Challenges ------------ None Game ------ Seed FlightHardcellSegregator Manual? 0 Play Time 00:05:03 Cumulative 299.1 hours Start 2020.02.04 @ 16:07:16 End 2020.02.04 @ 16:10:42 Sessions 1 Manual Loads 0 Difficulty Rogue Special Mode AFD2018/Launchers Game No. 122 Rogue 44 Adventurer 48 Explorer 30 Win Type - Total 46 Types 30/5/4/2/2/1/2 Lore% 98 Gallery% 100 Achievement% 88 Wizard Run 0 Options --------- ASCII 0 Keyboard 0 Movement Numpad Keybinds 1 Fullscreen 0 Font 18/Terminus Map View 76x50 Tactical HUD 1 Map Filters NONE Filters NONE Steam 1 RUN: 8293fb11-0501-4fd9-a80a-a83f2a46fe51